fUST/lending_fUST_20260201
["ID","MTS","AMOUNT","RATE_DAILY","PERIOD"]
[404196210,1769937032239,-300.0,0.00016597,2]
[404196211,1769937032249,-2192.0476734,0.00016598,2]
[404196212,1769937032260,-1000.0,0.00016791,2]
[404196213,1769937032270,-750.50262825,0.00017,2]
[404196214,1769937032279,-254.8350213,0.00017351,2]
[404196216,1769937032289,-6445.6612644,0.00017351,2]
[404196218,1769937032299,-500.0,0.00017469,2]
[404196220,1769937032308,-500.0,0.00017469,2]
[404196222,1769937032317,-159.81943461,0.00017469,2]
[404196224,1769937032327,-500.0,0.00017469,2]
[404196226,1769937032336,-495.08218421,0.00017469,2]
[404196228,1769937032347,-405.55304696,0.00017469,2]
[404196230,1769937032357,-500.0,0.00017469,2]
[404196232,1769937032366,-214.1599295,0.00017469,2]
[404196234,1769937032376,-500.0,0.00017469,2]
[404196236,1769937032387,-16773.57550273,0.0001747,2]
[404196238,1769937032397,-445.594,0.00017471,2]
[404196247,1769937032498,-600.0,0.00017685,2]
[404196248,1769937032508,-300.0,0.00017818,2]
[404196249,1769937032518,-300.0,0.00017818,2]
[404196250,1769937032527,-300.0,0.00017818,2]
[404196251,1769937032536,-300.0,0.00017818,2]
[404196252,1769937032545,-300.0,0.00017818,2]
[404196253,1769937032554,-300.0,0.00017818,2]
[404196254,1769937032563,-300.0,0.00017818,2]
[404196255,1769937032573,-300.0,0.00017818,2]
[404196256,1769937032582,-300.0,0.00017818,2]
[404196257,1769937032591,-300.0,0.00017818,2]
[404196258,1769937032602,-300.0,0.00017818,2]
[404196259,1769937032611,-300.0,0.00017818,2]
[404196260,1769937032620,-300.0,0.00017818,2]
[404196261,1769937032629,-300.0,0.00017818,2]
[404196262,1769937032638,-300.0,0.00017818,2]
[404196263,1769937032647,-243.59035524,0.00017999,2]
[404196264,1769937032656,-309.00076528,0.00017999,2]
[404196265,1769937032664,-175.20741034,0.00017999,2]
[404196266,1769937032673,-157805.31527883,0.00018,2]
[404196267,1769937032682,-206.71358,0.00018059,2]
[404196268,1769937032691,-177.0,0.00018444,2]
[404196269,1769937032700,-300.0,0.00018627,2]
[404196270,1769937032709,-1000.0,0.00019,2]
[404196271,1769937032718,-3132.45634062,0.00019205,5]
[404196272,1769937032726,-827.48,0.000193,2]
[404196273,1769937032735,-720.0,0.00019453,2]
[404196274,1769937032744,-1438.2214302,0.00019549,2]
[404196275,1769937032752,-1041.66666667,0.00019906,2]
[404196276,1769937032761,-160.0,0.00019906,2]
[404196277,1769937032769,-206.71358,0.00019959,2]
[404196278,1769937032778,-320.910578,0.00020039,2]
[404196279,1769937032786,-204.0,0.00020444,2]
[404196280,1769937032795,-864.0,0.00021399,10]
[404196281,1769937032803,-1041.71384603,0.000215,2]
[404196282,1769937032812,-12885.46223658,0.000215,2]
[404196283,1769937032820,-206.71358,0.0002186,2]
[404196284,1769937032829,-231.0,0.00022444,2]
[404196285,1769937032837,-1035.41840033,0.000225,2]
[404196286,1769937032846,-1000.0,0.00023538,10]
[404196287,1769937032854,-258.0,0.00024444,2]
[404196288,1769937032863,-236.138228,0.00024789,2]
[404196289,1769937032871,-22591.45794512,0.00025,30]
[404196290,1769937032881,-151.0,0.00025,8]
[404196291,1769937032890,-1041.66666667,0.00025,30]
[404196292,1769937032898,-1000.0,0.00025892,10]
[404196293,1769937032907,-244.0,0.00025892,10]
[404196294,1769937032916,-285.0,0.00026444,2]
[404196295,1769937032925,-151.0,0.000267,11]
[404196296,1769937032934,-827.48,0.000274,14]
[404196297,1769937032943,-312.0,0.00028444,2]
[404196298,1769937032952,-1000.0,0.00028481,30]
[404196299,1769937032960,-492.0,0.00028481,30]
[404196300,1769937032970,-151.0,0.000285,18]
[404196301,1769937032978,-5812.90678921,0.0002876,30]
[404196302,1769937032988,-151.0,0.000302,13]
[404196303,1769937032996,-339.0,0.00030444,2]
[404196304,1769937033005,-156.12,0.000305,7]
[404196305,1769937033014,-1000.0,0.0003133,30]
[404196306,1769937033023,-791.0,0.0003133,30]
[404196307,1769937033032,-151.0,0.00032,18]
[404196308,1769937033041,-236.762153,0.00032493,30]
[404196309,1769937033050,-14069.33,0.00032877,10]
[404196310,1769937033059,-60845.75634151,0.000329,5]
[404196314,1769937038235,-3024.77584787,0.0003289,10]
[404196320,1769937040284,-1000.0,0.0003289,10]
[404196607,1769937263314,151.0,0.00037507,31]
[404196608,1769937268365,151.0,0.00037507,31]
[404196609,1769937269493,151.0,0.00037507,31]
[404196610,1769937269912,151.0,0.00037507,31]
[404196611,1769937270400,151.0,0.00037507,31]
[404196612,1769937270710,151.0,0.00037507,31]
[404196613,1769937271132,151.0,0.00037507,31]
[404196614,1769937272385,151.0,0.00037507,31]
[404196615,1769937272866,292.0,0.00037507,31]
[404196722,1769938031578,151.0,0.00037516,120]
[404196723,1769938032742,156.587,0.00037516,120]
[404196724,1769938033397,162.380719,0.00037516,120]
[404196725,1769938034680,168.3888056,0.00037516,120]
[404196726,1769938037840,181.08010149,0.00037516,120]
[404196727,1769938038628,187.78006525,0.00037516,120]
[404196728,1769938039263,194.72792766,0.00037516,120]
[404196729,1769938039923,201.93286099,0.00037516,120]
[404196730,1769938040561,209.40437684,0.00037516,120]
[404196731,1769938041197,217.15233878,0.00037516,120]
[404196732,1769938041840,225.18697532,0.00037516,120]
[404196733,1769938042970,233.51889341,0.00037516,120]
[404196734,1769938043617,242.15909246,0.00037516,120]
[404196735,1769938044244,251.11897888,0.00037516,120]
[404196736,1769938044867,260.4103811,0.00037516,120]
[404196737,1769938045512,270.0455652,0.00037516,120]
[404196738,1769938046136,280.03725112,0.00037516,120]
[404196739,1769938046766,290.39862941,0.00037516,120]
[404196740,1769938047410,290.39862941,0.00037516,120]
[404196767,1769938110573,3255.31,0.00014,30]
[404196777,1769938173238,494.48816075,0.00037518,30]
[404196778,1769938216022,151.0,0.00037518,120]
[404196779,1769938217234,156.587,0.00037518,120]
[404196780,1769938217904,162.380719,0.00037518,120]
[404196781,1769938218595,168.3888056,0.00037518,120]
[404196782,1769938219286,174.61919141,0.00037518,120]
[404196783,1769938220444,181.08010149,0.00037518,120]
[404196784,1769938221120,187.78006525,0.00037518,120]
[404196785,1769938221759,194.72792766,0.00037518,120]
[404196786,1769938222392,201.93286099,0.00037518,120]
[404196787,1769938223039,209.40437684,0.00037518,120]
[404196788,1769938223683,217.15233878,0.00037518,120]
[404196789,1769938224456,225.18697532,0.00037518,120]
[404196790,1769938225000,233.51889341,0.00037518,120]
[404196791,1769938225653,242.15909246,0.00037518,120]
[404196792,1769938226303,242.15909246,0.00037518,120]
[404196871,1769938238363,-1289.95793183,0.00013009,2]
[404196873,1769938238373,-821.923307,0.0001314,2]
[404196875,1769938238383,-407.2432176,0.00013273,2]
[404196876,1769938238392,-341.18377264,0.00013273,2]
[404196877,1769938238402,-150.0,0.00013273,2]
[404196878,1769938238411,-411.98008302,0.00013699,2]
[404196879,1769938238422,-88.01991698,0.00013699,2]
[404196880,1769938238432,-235.66264575,0.00015273,2]
[404196881,1769938238442,-300.0,0.00017469,2]
[404196882,1769938238451,-2000.0,0.0001747,2]
[404196883,1769938238460,-1645.66955888,0.0001747,2]
[404196884,1769938238471,-354.33044112,0.0001747,2]
[404196885,1769938238482,-511.31919612,0.0001747,2]
[404196886,1769938238663,-1488.68080388,0.0001747,2]
[404196887,1769938238676,-2000.0,0.0001747,2]
[404196888,1769938238686,-2000.0,0.0001747,2]
[404196889,1769938238696,-2000.0,0.0001747,2]
[404196890,1769938238706,-2000.0,0.0001747,2]
[404196891,1769938238716,-2000.0,0.0001747,2]
[404196892,1769938238725,-475.0,0.0001747,2]
[404196893,1769938238734,-475.0,0.0001747,2]
[404196894,1769938238743,-475.0,0.0001747,2]
[404196895,1769938238752,-475.0,0.0001747,2]
[404196896,1769938238761,-475.0,0.0001747,2]
[404196897,1769938238771,-475.0,0.0001747,2]
[404196898,1769938238780,-475.0,0.0001747,2]
[404196899,1769938238789,-475.0,0.0001747,2]
[404196900,1769938238798,-600.0,0.00017818,2]
[404196901,1769938238807,-420.0,0.00019071,2]
[404196902,1769938238816,-720.0,0.000196,2]
[404196903,1769938238825,-607.69815009,0.00019612,2]
[404196904,1769938238834,-528.44253924,0.00019612,2]
[404196905,1769938238843,-412.30687173,0.00019612,2]
[404196906,1769938238853,-500.0,0.00019612,2]
[404196907,1769938238862,-500.0,0.00019612,2]
[404196908,1769938238871,-500.0,0.00019612,2]
[404196909,1769938238881,-57.5088911,0.00019612,2]
[404196918,1769938240503,-223.27149548,0.00018176,2]
[404196919,1769938240512,-322.92246041,0.00019612,2]
[404196920,1769938240522,-115.79473517,0.00019612,2]
[404196921,1769938240557,-384.20526483,0.00019612,2]
[404196922,1769938240567,-527.49643929,0.00019612,2]
[404196923,1769938240576,-500.0,0.00019612,2]
[404196924,1769938240586,-500.0,0.00019612,2]
[404196925,1769938240596,-500.0,0.00019612,2]
[404196926,1769938240606,-500.0,0.00019612,2]
[404196928,1769938240614,-500.0,0.00019612,2]
[404196929,1769938240624,-500.0,0.00019612,2]
[404196930,1769938240633,-500.0,0.00019612,2]
[404196931,1769938240642,-500.0,0.00019612,2]
[404196932,1769938240653,-500.0,0.00019612,2]
[404196933,1769938240662,-500.0,0.00019612,2]
[404196934,1769938240671,-500.0,0.00019612,2]
[404196935,1769938240680,-500.0,0.00019612,2]
[404196936,1769938240690,-500.0,0.00019612,2]
[404196937,1769938240700,-500.0,0.00019612,2]
[404196938,1769938240710,-500.0,0.00019612,2]
[404196939,1769938240720,-500.0,0.00019612,2]
[404196940,1769938240729,-500.0,0.00019612,2]
[404196941,1769938240738,-500.0,0.00019612,2]
[404196942,1769938240748,-592.15109054,0.00019612,2]
[404196943,1769938240757,-500.0,0.00019612,2]
[404196944,1769938240768,-500.0,0.00019612,2]
[404196945,1769938240779,-500.0,0.00019612,2]
[404196946,1769938240789,-500.0,0.00019612,2]
[404196947,1769938240798,-500.0,0.00019612,2]
[404196948,1769938240808,-500.0,0.00019612,2]
[404196949,1769938240818,-500.0,0.00019613,2]
[404196950,1769938240827,-1041.66666667,0.00019715,2]
[404196951,1769938240837,-160.0,0.00019715,2]
[404196952,1769938240846,-864.0,0.0002156,10]
[404196953,1769938240856,-767.2751372,0.00023182,2]
[404196954,1769938240867,-347.2908949,0.00023182,2]
[404196955,1769938240877,-1000.0,0.00023716,10]
[404196956,1769938240887,-358.944,0.00024487,2]
[404196957,1769938240897,-179.396,0.00024487,2]
[404196958,1769938240906,-418.0,0.00024487,2]
[404196959,1769938240916,-418.368,0.00025205,9]
[404196960,1769938240925,-150.0,0.00025543,2]
[404196961,1769938240935,-150.0,0.00025543,2]
[404196962,1769938240943,-150.0,0.00025543,2]
[404196963,1769938240953,-150.0,0.0002568,2]
[404196964,1769938240961,-150.0,0.0002568,2]
[404196965,1769938240970,-767.2751372,0.00025817,2]
[404196966,1769938240980,-150.0,0.00025817,2]
[404196967,1769938240989,-1000.0,0.00026088,10]
[404196968,1769938240998,-244.0,0.00026088,10]
[404196969,1769938241008,-347.2908949,0.00026287,2]
[404196970,1769938241017,-179.0,0.00027487,2]
[404196971,1769938241027,-418.0,0.00027487,2]
[404196972,1769938241036,-767.2751372,0.00028452,2]
[404196973,1769938241045,-1000.0,0.00028697,30]
[404196974,1769938241054,-492.0,0.00028697,30]
[404196975,1769938241064,-347.2908949,0.00029393,2]
[404196976,1769938241073,-170.51324867,0.00029989,2]
[404196977,1769938241082,-216.3005357,0.00029989,2]
[404196978,1769938241091,-11053.64,0.0002999,10]
[404196979,1769938241100,-9211.37,0.0002999,10]
[404196980,1769938241109,-7676.14,0.0002999,10]
[404196981,1769938241118,-41402.21871545,0.0003,2]
[404197002,1769938244938,-401.88869186,0.00020697,2]
[404197003,1769938244948,-5510.17732662,0.0002999,10]
[404197019,1769938246493,-886.60267338,0.0002999,10]
[404197020,1769938246505,-25787.61715929,0.0003,2]
[404197021,1769938246546,-1340.7165988,0.0003,2]
[404197025,1769938508614,291.83335606,0.00037522,120]
[404197058,1769939432553,-300.0,0.00013272,2]
[404197059,1769939432562,-150.24958667,0.00013272,2]
[404197062,1769939438500,-457.75041333,0.00013272,2]
[404197063,1769939438510,-150.0,0.00013272,2]
[404197064,1769939438520,-497.8433772,0.00013273,2]
[404197065,1769939438529,-500.06062089,0.00013273,2]
[404197066,1769939438538,-500.0,0.00013273,2]
[404197067,1769939438548,-500.0,0.00013273,2]
[404197068,1769939438557,-500.0,0.00013273,2]
[404197069,1769939438566,-500.0,0.00013699,2]
[404197070,1769939438575,-420.0,0.00014551,2]
[404197071,1769939438584,-501.18204101,0.00015272,2]
[404197072,1769939438594,-177.0,0.00015272,2]
[404197073,1769939438603,-180.0,0.00015953,2]
[404197074,1769939438612,-1000.0,0.00019,2]
[404197075,1769939438622,-746.42823631,0.00019607,2]
[404197076,1769939438633,-295.23843036,0.00019607,2]
[404197077,1769939438642,-195.81649173,0.00020322,2]
[404197078,1769939438652,-181.39125974,0.00020322,2]
[404197079,1769939438662,-725.56503897,0.00020322,2]
[404197081,1769939438671,-1000.0,0.00021179,2]
[404197082,1769939438680,-1000.0,0.00022,2]
[404197084,1769939438689,-352.46968511,0.00022004,2]
[404197086,1769939438699,-1632.52133769,0.00022004,2]
[404197087,1769939438708,-1230.0,0.00026,2]
[404197088,1769939438717,-278.9551907,0.00026114,2]
[404197089,1769939438728,-3018.2523118,0.00028924,2]
[404197090,1769939438737,-767.2751372,0.00028924,2]
[404197092,1769939438746,-3735.51418807,0.0002989,2]
[404197093,1769939438755,-500.0,0.00029897,2]
[404197095,1769939438764,-500.0,0.00029897,2]
[404197097,1769939438774,-500.0,0.00029897,2]
[404197099,1769939438783,-500.0,0.00029897,2]
[404197101,1769939438793,-500.0,0.00029897,2]
[404197103,1769939438802,-277.64532716,0.00029897,2]
[404197105,1769939438811,-500.0,0.00029897,2]
[404197107,1769939438820,-442.51974796,0.00029897,2]
[404197109,1769939438831,-500.0,0.00029897,2]
[404197111,1769939438839,-500.0,0.00029897,2]
[404197113,1769939438849,-500.0,0.00029897,2]
[404197115,1769939438858,-1916.41150424,0.000299,2]
[404197117,1769939438868,-395.68,0.00029989,24]
[404197119,1769939438878,-5330.65,0.0002999,10]
[404197121,1769939438887,-4442.21,0.0002999,10]
[404197123,1769939438900,-3701.84,0.0002999,10]
[404197125,1769939438910,-3084.87,0.0002999,10]
[404197127,1769939438919,-15083.63120036,0.0003,2]
[404197147,1769939440812,-347.2908949,0.00028924,2]
[404197148,1769939440821,-70016.85579603,0.0003,2]
[404197149,1769939440832,-2999.97612,0.0003,2]
[404197185,1769939446708,-1000.0,0.0002999,10]
[404197188,1769939708611,250.0,0.00037519,120]
[404197189,1769939709259,250.0,0.00037519,120]
[404197190,1769939709595,500.0,0.00037519,120]
[404197191,1769939709896,250.0,0.00037519,120]
[404197192,1769939710278,500.0,0.00037519,120]
[404197193,1769939710676,250.0,0.00037519,120]
[404197194,1769939711098,500.0,0.00037519,120]
[404197195,1769939711625,191.0616201,0.00037519,120]
[404197196,1769939711819,250.0,0.00037519,120]
[404197197,1769939712198,500.0,0.00037519,120]
[404197198,1769939712464,250.0,0.00037519,120]
[404197199,1769939712893,500.0,0.00037519,120]
[404197200,1769939713540,500.0,0.00037519,120]
[404197201,1769939713679,250.0,0.00037519,120]
[404197202,1769939714169,500.0,0.00037519,120]
[404197203,1769939714510,250.0,0.00037519,120]
[404197204,1769939714804,500.0,0.00037519,120]
[404197205,1769939714909,151.0,0.00037519,120]
[404197206,1769939715202,250.0,0.00037519,120]
[404197207,1769939715425,500.0,0.00037519,120]
[404197208,1769939715519,156.587,0.00037519,120]
[404197209,1769939715831,250.0,0.00037519,120]
[404197210,1769939716084,500.0,0.00037519,120]
[404197211,1769939716146,162.380719,0.00037519,120]
[404197212,1769939716518,250.0,0.00037519,120]
[404197213,1769939716764,500.0,0.00037519,120]
[404197214,1769939717308,168.3888056,0.00037519,120]
[404197215,1769939717345,250.0,0.00037519,120]
[404197216,1769939717382,500.0,0.00037519,120]
[404197217,1769939717592,250.0,0.00037519,120]
[404197218,1769939718021,250.0,0.00037519,120]
[404197219,1769939718067,174.61919141,0.00037519,120]
[404197220,1769939718109,500.0,0.00037519,120]
[404197221,1769939718612,181.08010149,0.00037519,120]
[404197222,1769939718810,500.0,0.00037519,120]
[404197223,1769939719249,187.78006525,0.00037519,120]
[404197224,1769939719452,500.0,0.00037519,120]
[404197225,1769939719889,194.72792766,0.00037519,120]
[404197226,1769939720535,201.93286099,0.00037519,120]
[404197227,1769939721036,500.0,0.00037519,120]
[404197228,1769939721160,209.40437684,0.00037519,120]
[404197229,1769939721666,500.0,0.00037519,120]
[404197230,1769939721807,217.15233878,0.00037519,120]
[404197231,1769939722196,250.0,0.00037519,120]
[404197232,1769939722417,225.18697532,0.00037519,120]
[404197233,1769939722853,500.0,0.00037519,120]
[404197234,1769939722893,250.0,0.00037519,120]
[404197235,1769939723054,233.51889341,0.00037519,120]
[404197236,1769939723480,500.0,0.00037519,120]
[404197237,1769939723519,250.0,0.00037519,120]
[404197238,1769939724134,500.0,0.00037519,120]
[404197239,1769939724172,250.0,0.00037519,120]
[404197240,1769939724214,242.15909246,0.00037519,120]
[404197241,1769939724815,250.0,0.00037519,120]
[404197242,1769939724872,251.11897888,0.00037519,120]
[404197243,1769939725429,250.0,0.00037519,120]
[404197244,1769939726074,250.0,0.00037519,120]
[404197245,1769939726769,260.4103811,0.00037519,120]
[404197246,1769939726851,250.0,0.00037519,120]
[404197247,1769939727405,270.0455652,0.00037519,120]
[404197248,1769939727496,250.0,0.00037519,120]
[404197249,1769939728053,280.03725112,0.00037519,120]
[404197250,1769939728642,250.0,0.00037519,120]
[404197251,1769939729229,290.39862941,0.00037519,120]
[404197252,1769939729740,250.0,0.00037519,120]
[404197253,1769939729946,290.39862941,0.00037519,120]
[404197254,1769939734395,2000.0,0.00037519,120]
[404197255,1769939735067,2074.0,0.00037519,120]
[404197256,1769939754615,1888.0,0.00037519,31]
[404197257,1769939755240,1888.0,0.00037519,31]
[404197258,1769939973402,2000.0,0.0003,120]
[404197259,1769939973744,2000.0,0.0003,120]
[404197260,1769939974659,2000.0,0.0003,120]
[404197261,1769939975592,1461.873,0.0003,120]
[404197262,1769939977462,475.0,0.0003,120]
[404197263,1769939977826,475.0,0.0003,120]
[404197264,1769939978130,475.0,0.0003,120]
[404197265,1769940008846,212.152672,0.00037531,31]
[404197266,1769940009505,151.0,0.00037531,120]
[404197267,1769940010161,156.587,0.00037531,120]
[404197268,1769940010816,162.380719,0.00037531,120]
[404197269,1769940011561,168.3888056,0.00037531,120]
[404197270,1769940012232,174.61919141,0.00037531,120]
[404197271,1769940012874,181.08010149,0.00037531,120]
[404197272,1769940013519,187.78006525,0.00037531,120]
[404197273,1769940014130,194.72792766,0.00037531,120]
[404197274,1769940014786,201.93286099,0.00037531,120]
[404197275,1769940015418,209.40437684,0.00037531,120]
[404197276,1769940016563,217.15233878,0.00037531,120]
[404197277,1769940017200,225.18697532,0.00037531,120]
[404197278,1769940018165,992.33103192,0.00037531,120]
[404197279,1769940039059,2000.0,0.0002999,120]
[404197280,1769940039376,2000.0,0.0002999,120]
[404197281,1769940039682,2000.0,0.0002999,120]
[404197282,1769940040017,2000.0,0.0002999,120]
[404197283,1769940043863,475.0,0.0002999,120]
[404197284,1769940044199,475.0,0.0002999,120]
[404197285,1769940044763,475.0,0.0002999,120]
[404197286,1769940045011,475.0,0.0002999,120]
[404197287,1769940045307,475.0,0.0002999,120]
[404197288,1769940045965,475.0,0.0002999,120]
[404197289,1769940046305,475.0,0.0002999,120]
[404197291,1769940236544,5000.0,0.00012454,2]
[404197309,1769940315248,184.05281278,0.00037531,120]
[404197311,1769940415167,994.753,0.0003,120]
[404197343,1769940631661,-300.0,0.00012721,2]
[404197366,1769940637814,-802.83533179,0.00012721,2]
[404197367,1769940637824,-3037.43992436,0.0001285,2]
[404197368,1769940637833,-177.0,0.0001298,2]
[404197369,1769940637842,-465.51591325,0.0001298,2]
[404197370,1769940637854,-138.48408675,0.0001298,2]
[404197371,1769940637863,-500.0,0.00013273,2]
[404197372,1769940637872,-500.0,0.00013699,2]
[404197374,1769940637881,-300.0,0.00013972,2]
[404197376,1769940637890,-300.0,0.00013972,2]
[404197377,1769940637899,-300.0,0.00013972,2]
[404197378,1769940637908,-300.0,0.00013972,2]
[404197379,1769940637917,-300.0,0.00013972,2]
[404197380,1769940637926,-120.31393225,0.00013972,2]
[404197381,1769940637937,-179.68606775,0.00013972,2]
[404197382,1769940637946,-300.0,0.00013972,2]
[404197383,1769940637956,-300.0,0.00013972,2]
[404197384,1769940637965,-295.31349258,0.00013972,2]
[404197385,1769940637976,-4.68650742,0.00013972,2]
[404197386,1769940637985,-300.0,0.00013972,2]
[404197387,1769940637994,-300.0,0.00013972,2]
[404197388,1769940638004,-300.0,0.00013972,2]
[404197389,1769940638013,-300.0,0.00013972,2]
[404197390,1769940638022,-300.0,0.00013972,2]
[404197391,1769940638032,-300.0,0.00013972,2]
[404197392,1769940638041,-194.22228237,0.00026444,2]
[404197393,1769940638051,-166.22122226,0.00026444,2]
[404197394,1769940638061,-299.19820008,0.00026444,2]
[404197395,1769940638070,-776.88912946,0.00027001,2]
[404197396,1769940638080,-130.77089604,0.00028723,2]
[404197397,1769940638092,-3137.80401853,0.00028723,2]
[404197398,1769940638102,-500.0,0.00028821,2]
[404197399,1769940638111,-500.0,0.00028821,2]
[404197400,1769940638121,-239.28665701,0.00028821,2]
[404197401,1769940638131,-500.0,0.00028821,2]
[404197402,1769940638140,-230.75511961,0.00028821,2]
[404197403,1769940638149,-500.0,0.00028821,2]
[404197404,1769940638162,-500.0,0.00028821,2]
[404197405,1769940638172,-500.0,0.00028821,2]
[404197406,1769940638181,-500.0,0.00028821,2]
[404197407,1769940638191,-500.0,0.00028821,2]
[404197408,1769940638200,-500.0,0.00028821,2]
[404197409,1769940638209,-500.0,0.00028821,2]
[404197410,1769940638217,-500.0,0.00028821,2]
[404197411,1769940638227,-500.0,0.00028821,2]
[404197412,1769940638237,-500.0,0.00028821,2]
[404197413,1769940638248,-505.60728789,0.00028821,2]
[404197414,1769940638258,-500.0,0.00028821,2]
[404197415,1769940638267,-388.597,0.00028822,21]
[404197416,1769940638277,-1727.0264479,0.00028823,2]
[404197417,1769940638288,-10684.5422412,0.00028823,2]
[404197418,1769940638298,-158.5974314,0.00028823,2]
[404197419,1769940638307,-500.0,0.00028823,2]
[404197420,1769940638318,-500.0,0.00028823,2]
[404197421,1769940638327,-150.0,0.00028823,2]
[404197422,1769940638337,-179.65708539,0.00028823,2]
[404197423,1769940638346,-500.0,0.00028823,2]
[404197424,1769940638355,-150.0,0.00028823,2]
[404197425,1769940638364,-500.0,0.00028823,2]
[404197426,1769940638373,-150.0,0.00028823,2]
[404197427,1769940638382,-150.0,0.00028823,2]
[404197428,1769940638392,-500.0,0.00028823,2]
[404197429,1769940638401,-500.0,0.0002896,2]
[404197430,1769940638411,-500.0,0.0002896,2]
[404197431,1769940638421,-500.0,0.0002896,2]
[404197432,1769940638430,-150.0,0.0002896,2]
[404197433,1769940638439,-500.0,0.0002896,2]
[404197434,1769940638448,-150.0,0.0002896,2]
[404197435,1769940638457,-150.0,0.0002896,2]
[404197436,1769940638467,-283.57264609,0.00029097,2]
[404197437,1769940638477,-623.10272367,0.00029097,2]
[404197438,1769940638486,-500.0,0.00029097,2]
[404197439,1769940638496,-196.07090996,0.00029097,2]
[404197440,1769940638519,-500.0,0.00029097,2]
[404197441,1769940638536,-150.0,0.00029097,2]
[404197442,1769940638546,-500.0,0.00029097,2]
[404197443,1769940638556,-500.0,0.00029234,2]
[404197444,1769940638565,-500.0,0.00029234,2]
[404197445,1769940638575,-150.0,0.00029234,2]
[404197446,1769940638584,-632.14525905,0.00029371,2]
[404197447,1769940638594,-500.0,0.00029371,2]
[404197448,1769940638603,-150.0,0.00029371,2]
[404197449,1769940638619,-500.0,0.00029371,2]
[404197450,1769940638628,-600.0,0.00029397,30]
[404197451,1769940638638,-500.0,0.00029508,2]
[404197452,1769940638650,-500.0,0.00029645,2]
[404197453,1769940638659,-255.29216548,0.00029726,2]
[404197454,1769940638670,-500.0,0.00029782,2]
[404197455,1769940638679,-94082.88623224,0.0003,2]
[404197463,1769940639815,-395.29,0.0002999,10]
[404197481,1769940645584,-418.0,0.0002694,2]
[404197483,1769940645594,-2008.77,0.0002999,10]
[404197484,1769940645603,-1527.80726808,0.0003,2]
[404197491,1769940645915,-91274.27672332,0.0003,2]
[404197492,1769940645925,-153.0,0.0003,7]
[404197493,1769940645934,-153.0,0.0003,7]
[404197494,1769940645944,-153.0,0.0003,7]
[404197495,1769940645953,-153.0,0.0003,7]
[404197496,1769940645962,-153.0,0.0003,7]
[404197497,1769940645972,-153.0,0.0003,7]
[404197498,1769940645981,-298.41859373,0.0003,7]
[404197499,1769940645990,-349.0,0.0003,7]
[404197500,1769940646000,-166.0,0.0003,7]
[404197501,1769940646010,-349.0,0.0003,7]
[404197502,1769940646020,-349.0,0.0003,7]
[404197503,1769940646030,-164.0,0.0003,7]
[404197504,1769940646039,-349.0,0.0003,7]
[404197505,1769940646049,-164.0,0.0003,7]
[404197506,1769940646059,-349.0,0.0003,7]
[404197507,1769940646068,-226.58008266,0.0003,7]